[Event "*** Titled Tuesday 3|2 Blitz"]
[Site "Chess.com"]
[Date "2016.09.06"]
[Round "3"]
[White "michaelq2d5"]
[Black "ruifeng"]
[Result "0-1"]
[WhiteElo "2496"]
[BlackElo "2352"]
[TimeControl "180+2"]
[EndTime "17:35:41 PDT"]
[Termination "ruifeng won by resignation"]

1. d4 {[%clk 0:02:54.6]} 1... e6 {[%clk 0:02:58.6]} 2. c4 {[%clk 0:02:55.7]}
2... b6 {[%clk 0:02:59.5]} 3. Nc3 {[%clk 0:02:56.3]} 3... Bb7 {[%clk 0:03:00.7]}
4. a3 {[%clk 0:02:57.9]} 4... f5 {[%clk 0:03:00.2]} 5. d5 {[%clk 0:02:59.3]}
5... Be7 {[%clk 0:02:21.2]} 6. g3 {[%clk 0:02:55.7]} 6... Nf6 {[%clk 0:02:21.4]}
7. Bg2 {[%clk 0:02:56.7]} 7... e5 {[%clk 0:02:20.2]} 8. Nf3 {[%clk 0:02:56.7]}
8... d6 {[%clk 0:02:11]} 9. Ng5 {[%clk 0:02:40.2]} 9... Bc8 {[%clk 0:02:11.6]}
10. O-O {[%clk 0:02:36.2]} 10... O-O {[%clk 0:02:12.5]} 11. b4 {[%clk
0:02:27.8]} 11... a5 {[%clk 0:02:11.7]} 12. Ne6 {[%clk 0:02:27.6]} 12... Bxe6
{[%clk 0:02:05.6]} 13. dxe6 {[%clk 0:02:28.7]} 13... e4 {[%clk 0:01:51.2]} 14.
Bb2 {[%clk 0:02:27.7]} 14... axb4 {[%clk 0:01:42.4]} 15. axb4 {[%clk 0:02:28.5]}
15... Rxa1 {[%clk 0:01:43.4]} 16. Qxa1 {[%clk 0:02:28]} 16... Nc6 {[%clk
0:01:43.6]} 17. Nd5 {[%clk 0:02:20.8]} 17... Nxd5 {[%clk 0:01:20.7]} 18. cxd5
{[%clk 0:02:19.8]} 18... Nxb4 {[%clk 0:01:21.9]} 19. Bxg7 {[%clk 0:02:13.4]}
19... Bf6 {[%clk 0:01:22.7]} 20. Bxf6 {[%clk 0:02:14.3]} 20... Qxf6 {[%clk
0:01:22.1]} 21. Qxf6 {[%clk 0:02:13.7]} 21... Rxf6 {[%clk 0:01:22.9]} 22. Rd1
{[%clk 0:02:14.4]} 22... Kf8 {[%clk 0:01:17.4]} 23. f3 {[%clk 0:02:14.6]} 23...
exf3 {[%clk 0:01:16.3]} 24. Bxf3 {[%clk 0:02:15.3]} 24... Ke7 {[%clk 0:01:15.6]}
25. Rc1 {[%clk 0:02:12.5]} 25... Na6 {[%clk 0:01:11.8]} 26. Ra1 {[%clk
0:02:12.8]} 26... Nc5 {[%clk 0:01:11]} 27. Ra7 {[%clk 0:02:13.6]} 27... Kd8
{[%clk 0:01:11.2]} 28. Ra8+ {[%clk 0:02:10.4]} 28... Ke7 {[%clk 0:01:10]} 29.
Bh5 {[%clk 0:02:01.5]} 29... Rf8 {[%clk 0:01:02.6]} 30. Ra7 {[%clk 0:01:50.3]}
30... Rc8 {[%clk 0:01:03.3]} 31. Kf2 {[%clk 0:01:50.4]} 31... b5 {[%clk
0:01:04.4]} 32. Ke3 {[%clk 0:01:51.2]} 32... b4 {[%clk 0:01:05.6]} 33. Kd4
{[%clk 0:01:48.5]} 33... b3 {[%clk 0:01:06.6]} 34. Kc3 {[%clk 0:01:49.8]} 34...
Kf6 {[%clk 0:01:03.5]} 35. e3 {[%clk 0:01:47.1]} 35... Rb8 {[%clk 0:00:48.8]}
36. e7 {[%clk 0:01:30.4]} 36... Kxe7 {[%clk 0:00:46.6]} 37. Rxc7+ {[%clk
0:01:31.1]} 37... Kf6 {[%clk 0:00:45.2]} 38. Kb2 {[%clk 0:01:29.9]} 38... Ke5
{[%clk 0:00:33.6]} 39. Bf3 {[%clk 0:01:29.2]} 39... Nd3+ {[%clk 0:00:24]} 40.
Kb1 {[%clk 0:01:26.6]} 40... Rb5 {[%clk 0:00:24.4]} 41. Rc3 {[%clk 0:01:18.1]}
41... Nc5 {[%clk 0:00:23.3]} 42. Be2 {[%clk 0:01:14.9]} 42... Rb4 {[%clk
0:00:24.3]} 43. Bf3 {[%clk 0:00:58.6]} 43... Ra4 {[%clk 0:00:17.9]} 44. Bd1
{[%clk 0:00:55]} 44... Kxd5 {[%clk 0:00:17.2]} 45. Bxb3+ {[%clk 0:00:55.8]}
45... Nxb3 {[%clk 0:00:18.2]} 46. Rxb3 {[%clk 0:00:57.7]} 46... Ke4 {[%clk
0:00:19.2]} 47. Kc2 {[%clk 0:00:57.6]} 47... Ra2+ {[%clk 0:00:19.5]} 48. Kc3
{[%clk 0:00:59]} 48... Kxe3 {[%clk 0:00:14.3]} 49. Rb6 {[%clk 0:00:54.9]} 49...
d5 {[%clk 0:00:11.6]} 50. Re6+ {[%clk 0:00:55.5]} 50... Kf3 {[%clk 0:00:13]} 51.
Rh6 {[%clk 0:00:55.5]} 51... Ke3 {[%clk 0:00:08.6]} 52. Re6+ {[%clk 0:00:56.5]}
52... Kf3 {[%clk 0:00:10.1]} 53. Rh6 {[%clk 0:00:57.7]} 53... Ra7 {[%clk
0:00:11.3]} 54. Kd4 {[%clk 0:00:58.1]} 54... Rd7 {[%clk 0:00:12.5]} 55. Rh4
{[%clk 0:00:39.8]} 55... Kg2 {[%clk 0:00:13.3]} 56. Rh5 {[%clk 0:00:40.3]} 56...
Kg1 {[%clk 0:00:12.5]} 57. Rxf5 {[%clk 0:00:15.6]} 57... Kxh2 {[%clk 0:00:13.2]}
58. Rg5 {[%clk 0:00:17]} 58... Kh3 {[%clk 0:00:14]} 59. Rg8 {[%clk 0:00:16]}
59... Kg2 {[%clk 0:00:14.9]} 60. Rg5 {[%clk 0:00:16.8]} 60... Kf3 {[%clk
0:00:16.2]} 61. Rg8 {[%clk 0:00:18]} 61... Kf2 {[%clk 0:00:15.2]} 62. Rg5 {[%clk
0:00:18.9]} 62... Kg2 {[%clk 0:00:16.2]} 63. Rg8 {[%clk 0:00:20]} 63... Rd6
{[%clk 0:00:15]} 64. Rg7 {[%clk 0:00:20.3]} 64... h6 {[%clk 0:00:16.1]} 65. Rg8
{[%clk 0:00:21.3]} 65... Kf3 {[%clk 0:00:16.5]} 66. Rg7 {[%clk 0:00:21.7]} 66...
Ra6 {[%clk 0:00:09.7]} 67. Kxd5 {[%clk 0:00:22.3]} 67... Ra5+ {[%clk 0:00:11]}
68. Kd4 {[%clk 0:00:20.7]} 68... Rg5 {[%clk 0:00:11.9]} 69. Rh7 {[%clk
0:00:20.3]} 69... h5 {[%clk 0:00:13]} 70. Kd3 {[%clk 0:00:20.4]} 70... Kxg3
{[%clk 0:00:13.3]} 71. Ke4 {[%clk 0:00:21.5]} 71... h4 {[%clk 0:00:14.2]} 72.
Ra7 {[%clk 0:00:18.5]} 72... h3 {[%clk 0:00:15.4]} 73. Ra3+ {[%clk 0:00:19.7]}
73... Kh4 {[%clk 0:00:13.3]} 74. Ra4 {[%clk 0:00:06.9]} 74... Rg4+ {[%clk
0:00:14.2]} 0-1

[Event "*** Titled Tuesday 3|2 Blitz"]
[Site "Chess.com"]
[Date "2016.09.06"]
[Round "3"]
[White "Krutoy123"]
[Black "wonderfultime"]
[Result "0-1"]
[WhiteElo "2504"]
[BlackElo "2685"]
[TimeControl "180+2"]
[EndTime "17:36:10 PDT"]
[Termination "wonderfultime won by resignation"]

1. e4 {[%clk 0:02:59.1]} 1... c5 {[%clk 0:02:59.7]} 2. Nf3 {[%clk 0:02:59.8]}
2... d6 {[%clk 0:03:00.8]} 3. d4 {[%clk 0:03:00.9]} 3... cxd4 {[%clk 0:03:02]}
4. Nxd4 {[%clk 0:03:02.8]} 4... Nf6 {[%clk 0:03:02]} 5. f3 {[%clk 0:03:04]} 5...
Nc6 {[%clk 0:02:59]} 6. c4 {[%clk 0:03:04.7]} 6... e6 {[%clk 0:02:56.1]} 7. Nc3
{[%clk 0:03:03.6]} 7... Be7 {[%clk 0:02:57.6]} 8. Be3 {[%clk 0:03:04]} 8... O-O
{[%clk 0:02:58.7]} 9. Qd2 {[%clk 0:03:05.3]} 9... a6 {[%clk 0:02:58]} 10. Be2
{[%clk 0:03:06.2]} 10... Bd7 {[%clk 0:02:58.9]} 11. O-O {[%clk 0:03:07.2]} 11...
Rc8 {[%clk 0:02:56.8]} 12. Rac1 {[%clk 0:03:06.6]} 12... Ne5 {[%clk 0:02:57.2]}
13. b3 {[%clk 0:03:07.5]} 13... Qc7 {[%clk 0:02:58.3]} 14. Rfd1 {[%clk
0:03:08.2]} 14... Qb8 {[%clk 0:02:59.4]} 15. h3 {[%clk 0:03:06.6]} 15... Rfd8
{[%clk 0:03:00.2]} 16. f4 {[%clk 0:03:07.7]} 16... Nc6 {[%clk 0:02:58.1]} 17.
Bf3 {[%clk 0:03:06.7]} 17... Nxd4 {[%clk 0:02:57.9]} 18. Bxd4 {[%clk 0:03:07.5]}
18... Bc6 {[%clk 0:02:57.1]} 19. a4 {[%clk 0:03:00.2]} 19... a5 {[%clk
0:02:24.1]} 20. Qf2 {[%clk 0:02:59.2]} 20... Nd7 {[%clk 0:02:23]} 21. Qg3 {[%clk
0:02:43.8]} 21... Bf6 {[%clk 0:02:16.9]} 22. Bxf6 {[%clk 0:02:04.5]} 22... Nxf6
{[%clk 0:02:18.8]} 23. Rd3 {[%clk 0:01:54.2]} 23... Nd7 {[%clk 0:02:15.5]} 24.
Re3 {[%clk 0:01:45.2]} 24... Nc5 {[%clk 0:02:14.3]} 25. Bd1 {[%clk 0:01:46.3]}
25... Qa7 {[%clk 0:02:12.1]} 26. Kh1 {[%clk 0:01:39.1]} 26... Nd7 {[%clk
0:02:04.6]} 27. Bc2 {[%clk 0:01:35.1]} 27... Qc5 {[%clk 0:01:56.8]} 28. Rd1
{[%clk 0:01:32.9]} 28... Qa3 {[%clk 0:01:50.2]} 29. e5 {[%clk 0:01:17.4]} 29...
dxe5 {[%clk 0:01:48.4]} 30. Qh4 {[%clk 0:01:18.5]} 30... Nf6 {[%clk 0:01:14.7]}
31. Rg3 {[%clk 0:00:30.9]} 31... Rxd1+ {[%clk 0:01:13.2]} 32. Nxd1 {[%clk
0:00:32]} 32... Ne4 {[%clk 0:00:57.6]} 33. Bxe4 {[%clk 0:00:28.5]} 33... Bxe4
{[%clk 0:00:59.5]} 34. fxe5 {[%clk 0:00:29.7]} 34... Bg6 {[%clk 0:01:00.6]} 35.
Qd4 {[%clk 0:00:29.8]} 35... h6 {[%clk 0:00:54.6]} 36. Nf2 {[%clk 0:00:24.2]}
36... Qe7 {[%clk 0:00:49.3]} 37. Qd2 {[%clk 0:00:20.5]} 37... Rd8 {[%clk
0:00:49.5]} 38. Qxa5 {[%clk 0:00:21.3]} 38... Kh7 {[%clk 0:00:45]} 39. Qc3
{[%clk 0:00:22.4]} 39... Qh4 {[%clk 0:00:43.2]} 40. Qe3 {[%clk 0:00:23]} 40...
Qe7 {[%clk 0:00:31.4]} 41. Rf3 {[%clk 0:00:21.6]} 41... Rd7 {[%clk 0:00:28.7]}
42. Kh2 {[%clk 0:00:06.6]} 42... Qb4 {[%clk 0:00:27.4]} 43. Qf4 {[%clk
0:00:06.9]} 43... Rd2 {[%clk 0:00:26.1]} 44. Ne4 {[%clk 0:00:07]} 44... Rb2
{[%clk 0:00:24.7]} 45. Nd6 {[%clk 0:00:07.3]} 45... Rxb3 {[%clk 0:00:22.9]} 46.
Rxb3 {[%clk 0:00:08.6]} 46... Qxb3 {[%clk 0:00:24.8]} 47. Nxf7 {[%clk
0:00:10.2]} 47... Qxa4 {[%clk 0:00:23.5]} 48. Nd6 {[%clk 0:00:11.5]} 48... Qc6
{[%clk 0:00:23.3]} 49. Qf3 {[%clk 0:00:11.5]} 49... Qc5 {[%clk 0:00:24.4]} 50.
Qf4 {[%clk 0:00:12]} 50... b6 {[%clk 0:00:25.1]} 51. Nb5 {[%clk 0:00:11]} 51...
Bd3 {[%clk 0:00:25.7]} 52. Nd6 {[%clk 0:00:12.5]} 52... Bg6 {[%clk 0:00:17]} 53.
h4 {[%clk 0:00:13.6]} 53... Bd3 {[%clk 0:00:15.2]} 54. h5 {[%clk 0:00:13.7]}
54... Qb4 {[%clk 0:00:15.1]} 55. Qe3 {[%clk 0:00:12.4]} 55... Qb1 {[%clk
0:00:12.3]} 56. Ne8 {[%clk 0:00:09.6]} 56... Qd1 {[%clk 0:00:12.3]} 57. Qh3
{[%clk 0:00:04.9]} 57... Bxc4 {[%clk 0:00:09.9]} 58. Qh4 {[%clk 0:00:05.6]}
58... Bd5 {[%clk 0:00:07.9]} 59. Nd6 {[%clk 0:00:05.2]} 59... Qe2 {[%clk
0:00:08.2]} 60. Qg3 {[%clk 0:00:04.6]} 60... Qxh5+ {[%clk 0:00:09.5]} 61. Kg1
{[%clk 0:00:06.5]} 61... Qg6 {[%clk 0:00:10.5]} 62. Qf2 {[%clk 0:00:05.2]} 62...
h5 {[%clk 0:00:10.6]} 63. Kh2 {[%clk 0:00:03.8]} 63... Qg5 {[%clk 0:00:12]} 64.
Qg3 {[%clk 0:00:03.7]} 64... Qxg3+ {[%clk 0:00:12.8]} 65. Kxg3 {[%clk
0:00:05.6]} 65... g5 {[%clk 0:00:14.4]} 66. Kh3 {[%clk 0:00:06]} 66... Kg6
{[%clk 0:00:15.8]} 67. g4 {[%clk 0:00:07.6]} 67... hxg4+ {[%clk 0:00:15.3]} 68.
Kxg4 {[%clk 0:00:08.8]} 68... Bc6 {[%clk 0:00:15.7]} 69. Nc4 {[%clk 0:00:04.5]}
69... b5 {[%clk 0:00:16.6]} 70. Nd2 {[%clk 0:00:06.2]} 70... b4 {[%clk
0:00:17.1]} 0-1

[Event "*** Titled Tuesday 3|2 Blitz"]
[Site "Chess.com"]
[Date "2016.09.06"]
[Round "3"]
[White "GianmarcoVaR"]
[Black "Rsnr"]
[Result "0-1"]
[WhiteElo "2421"]
[BlackElo "2536"]
[TimeControl "180+2"]
[EndTime "17:37:25 PDT"]
[Termination "Rsnr won by resignation"]

1. d4 {[%clk 0:03:01.9]} 1... d5 {[%clk 0:03:01.1]} 2. Nf3 {[%clk 0:03:03.3]}
2... Nf6 {[%clk 0:03:02.3]} 3. c4 {[%clk 0:03:04.9]} 3... c6 {[%clk 0:03:03.8]}
4. e3 {[%clk 0:03:05.8]} 4... Bg4 {[%clk 0:03:04.5]} 5. h3 {[%clk 0:03:04.8]}
5... Bh5 {[%clk 0:03:05.6]} 6. Qb3 {[%clk 0:03:04.2]} 6... Qb6 {[%clk
0:03:06.4]} 7. Nc3 {[%clk 0:03:00.9]} 7... e6 {[%clk 0:03:07.4]} 8. Ne5 {[%clk
0:03:00.3]} 8... Nbd7 {[%clk 0:03:07.3]} 9. g4 {[%clk 0:03:01.3]} 9... Bg6
{[%clk 0:03:08.8]} 10. Nxg6 {[%clk 0:03:01.5]} 10... hxg6 {[%clk 0:03:10.7]} 11.
Bg2 {[%clk 0:03:02.7]} 11... Bb4 {[%clk 0:03:11.9]} 12. Bd2 {[%clk 0:02:58.4]}
12... Bxc3 {[%clk 0:03:13]} 13. Bxc3 {[%clk 0:02:58.4]} 13... Ne4 {[%clk
0:03:14.6]} 14. Bxe4 {[%clk 0:02:49.6]} 14... Qxb3 {[%clk 0:03:14.8]} 15. axb3
{[%clk 0:02:49.3]} 15... dxe4 {[%clk 0:03:16.7]} 16. Ke2 {[%clk 0:02:45.4]}
16... f6 {[%clk 0:02:34.9]} 17. Bb4 {[%clk 0:02:41.6]} 17... Kf7 {[%clk
0:02:33.3]} 18. Bd6 {[%clk 0:02:42.6]} 18... a6 {[%clk 0:02:29]} 19. f3 {[%clk
0:02:38.1]} 19... exf3+ {[%clk 0:02:25.4]} 20. Kxf3 {[%clk 0:02:39.2]} 20...
Rhd8 {[%clk 0:02:18.6]} 21. h4 {[%clk 0:02:38.2]} 21... Rh8 {[%clk 0:02:18.7]}
22. Ra5 {[%clk 0:02:35.9]} 22... Rac8 {[%clk 0:02:09.2]} 23. Bg3 {[%clk
0:02:34.7]} 23... Rhe8 {[%clk 0:02:04.7]} 24. h5 {[%clk 0:02:32.3]} 24... g5
{[%clk 0:02:05.8]} 25. Rd1 {[%clk 0:02:24.2]} 25... Red8 {[%clk 0:02:03.8]} 26.
b4 {[%clk 0:02:21.4]} 26... Nb6 {[%clk 0:01:54.5]} 27. b3 {[%clk 0:02:22.3]}
27... e5 {[%clk 0:01:55.2]} 28. Bf2 {[%clk 0:02:16.8]} 28... Rd7 {[%clk
0:01:26.2]} 29. Rf1 {[%clk 0:02:00]} 29... exd4 {[%clk 0:01:05.4]} 30. exd4
{[%clk 0:02:01.1]} 30... Na8 {[%clk 0:01:07.3]} 31. Re1 {[%clk 0:01:07.5]} 31...
Nc7 {[%clk 0:01:08.3]} 32. Ra2 {[%clk 0:01:06.2]} 32... Ne6 {[%clk 0:00:46.1]}
33. Rae2 {[%clk 0:01:01.7]} 33... Re8 {[%clk 0:00:47.3]} 34. Re4 {[%clk
0:00:58.6]} 34... Nc7 {[%clk 0:00:34.2]} 35. Rxe8 {[%clk 0:00:54.3]} 35... Nxe8
{[%clk 0:00:36.1]} 36. Re4 {[%clk 0:00:42.6]} 36... Nc7 {[%clk 0:00:37.1]} 37.
Bg3 {[%clk 0:00:33.8]} 37... Ne6 {[%clk 0:00:38.4]} 38. Ke3 {[%clk 0:00:35.1]}
38... Rd8 {[%clk 0:00:30.5]} 39. Kd3 {[%clk 0:00:34.3]} 39... Rd7 {[%clk
0:00:31]} 40. Kc3 {[%clk 0:00:35.6]} 40... Nd8 {[%clk 0:00:31.8]} 41. Bf2 {[%clk
0:00:28.3]} 41... Ne6 {[%clk 0:00:32.6]} 42. Be3 {[%clk 0:00:27.7]} 42... Nd8
{[%clk 0:00:33.3]} 43. Kb2 {[%clk 0:00:24.6]} 43... b5 {[%clk 0:00:22.5]} 44.
Kc3 {[%clk 0:00:22]} 44... Ne6 {[%clk 0:00:23.3]} 45. Bd2 {[%clk 0:00:15.2]}
45... Re7 {[%clk 0:00:14.8]} 46. Be3 {[%clk 0:00:09.8]} 46... Rd7 {[%clk
0:00:15.5]} 47. Bd2 {[%clk 0:00:11]} 47... Re7 {[%clk 0:00:16.2]} 48. Be3 {[%clk
0:00:09.8]} 48... Rd7 {[%clk 0:00:17]} 49. Bf2 {[%clk 0:00:09.4]} 49... Nf4
{[%clk 0:00:17]} 50. Bg3 {[%clk 0:00:09.5]} 50... Ne6 {[%clk 0:00:18]} 51. Bh2
{[%clk 0:00:08.3]} 51... Rd8 {[%clk 0:00:17.8]} 52. Bg3 {[%clk 0:00:07.9]} 52...
Rd7 {[%clk 0:00:19]} 53. Bf2 {[%clk 0:00:07.8]} 53... Nf4 {[%clk 0:00:20]} 54.
Be3 {[%clk 0:00:08]} 54... Ne6 {[%clk 0:00:21]} 55. Bc1 {[%clk 0:00:08.4]} 55...
Re7 {[%clk 0:00:20.7]} 56. Kd3 {[%clk 0:00:07.7]} 56... Rd7 {[%clk 0:00:21.5]}
57. Be3 {[%clk 0:00:07.6]} 57... a5 {[%clk 0:00:20.9]} 58. Kc3 {[%clk
0:00:05.5]} 58... bxc4 {[%clk 0:00:14.5]} 59. bxc4 {[%clk 0:00:05.8]} 59...
axb4+ {[%clk 0:00:14.4]} 60. Kxb4 {[%clk 0:00:07]} 60... Rb7+ {[%clk 0:00:16.1]}
61. Kc3 {[%clk 0:00:04.6]} 61... Nc7 {[%clk 0:00:15]} 62. Bc1 {[%clk 0:00:04]}
62... Ne6 {[%clk 0:00:15.8]} 63. Ba3 {[%clk 0:00:04.6]} 63... Nf4 {[%clk
0:00:16.3]} 64. Bd6 {[%clk 0:00:04.8]} 64... Ne6 {[%clk 0:00:16.7]} 65. d5
{[%clk 0:00:05.7]} 65... cxd5 {[%clk 0:00:14.5]} 66. cxd5 {[%clk 0:00:07.3]}
66... Nd8 {[%clk 0:00:16.3]} 67. Kc4 {[%clk 0:00:07.8]} 67... Rd7 {[%clk
0:00:17.6]} 68. Bc5 {[%clk 0:00:07.8]} 68... Nb7 {[%clk 0:00:18.9]} 69. Kd4
{[%clk 0:00:06.1]} 69... Na5 {[%clk 0:00:19.5]} 70. Re6 {[%clk 0:00:06.1]} 70...
Nb3+ {[%clk 0:00:14.3]} 71. Kc4 {[%clk 0:00:07.3]} 71... Nd2+ {[%clk 0:00:15.6]}
72. Kb5 {[%clk 0:00:07.4]} 72... Rxd5 {[%clk 0:00:15.1]} 73. Re7+ {[%clk
0:00:08.3]} 73... Kg8 {[%clk 0:00:16.5]} 74. Re8+ {[%clk 0:00:08.8]} 74... Kh7
{[%clk 0:00:17.3]} 75. Kc6 {[%clk 0:00:09.5]} 75... Rd3 {[%clk 0:00:15.6]} 76.
Re7 {[%clk 0:00:09]} 76... Nf3 {[%clk 0:00:15.9]} 77. Rb7 {[%clk 0:00:07.8]}
77... Ne5+ {[%clk 0:00:17]} 78. Kc7 {[%clk 0:00:05.6]} 78... Rd7+ {[%clk
0:00:18]} 79. Kb6 {[%clk 0:00:06.1]} 79... Rxb7+ {[%clk 0:00:19.9]} 80. Kxb7
{[%clk 0:00:07.7]} 80... Nxg4 {[%clk 0:00:21.8]} 81. Kc6 {[%clk 0:00:09.3]}
81... Kh6 {[%clk 0:00:23.3]} 82. Bf8 {[%clk 0:00:09.7]} 82... f5 {[%clk
0:00:21.1]} 83. Kd5 {[%clk 0:00:10.6]} 83... f4 {[%clk 0:00:21.3]} 84. Ke4
{[%clk 0:00:11.8]} 84... Nf6+ {[%clk 0:00:22.7]} 85. Kf5 {[%clk 0:00:11.2]}
85... Nxh5 {[%clk 0:00:24.2]} 86. Be7 {[%clk 0:00:12.6]} 86... Ng3+ {[%clk
0:00:23.3]} 87. Kg4 {[%clk 0:00:13.4]} 87... Ne4 {[%clk 0:00:24.9]} 88. Kf5
{[%clk 0:00:13.7]} 88... Nf6 {[%clk 0:00:26.6]} 89. Bc5 {[%clk 0:00:11.6]} 89...
Kh5 {[%clk 0:00:25.9]} 90. Bf8 {[%clk 0:00:12.4]} 90... f3 {[%clk 0:00:24.8]}
91. Bc5 {[%clk 0:00:13.1]} 91... Ng4 {[%clk 0:00:18.4]} 92. Be3 {[%clk
0:00:03.7]} 92... Nxe3+ {[%clk 0:00:18.8]} 0-1

[Event "*** Titled Tuesday 3|2 Blitz"]
[Site "Chess.com"]
[Date "2016.09.06"]
[Round "4"]
[White "rozabaku"]
[Black "hypert"]
[Result "0-1"]
[WhiteElo "2206"]
[BlackElo "2330"]
[TimeControl "180+2"]
[EndTime "17:39:12 PDT"]
[Termination "hypert won by resignation"]

1. d4 {[%clk 0:02:59.8]} 1... Nf6 {[%clk 0:03:00.2]} 2. c4 {[%clk 0:02:58.9]}
2... e6 {[%clk 0:03:01.7]} 3. Nc3 {[%clk 0:02:58.2]} 3... Bb4 {[%clk 0:03:02.4]}
4. Qc2 {[%clk 0:02:59.4]} 4... Nc6 {[%clk 0:03:02.4]} 5. Nf3 {[%clk 0:03:00.5]}
5... d5 {[%clk 0:03:03.3]} 6. Bg5 {[%clk 0:03:01]} 6... h6 {[%clk 0:02:57.3]} 7.
Bxf6 {[%clk 0:03:01.2]} 7... Qxf6 {[%clk 0:02:58.2]} 8. e3 {[%clk 0:03:02.5]}
8... a6 {[%clk 0:02:56.9]} 9. a3 {[%clk 0:03:03.4]} 9... Bd6 {[%clk 0:02:55.8]}
10. Be2 {[%clk 0:03:00.5]} 10... dxc4 {[%clk 0:02:56.7]} 11. Bxc4 {[%clk
0:03:01]} 11... O-O {[%clk 0:02:57]} 12. O-O {[%clk 0:03:02]} 12... e5 {[%clk
0:02:56.5]} 13. dxe5 {[%clk 0:03:00.3]} 13... Nxe5 {[%clk 0:02:56.5]} 14. Be2
{[%clk 0:03:00.4]} 14... Bf5 {[%clk 0:02:49.5]} 15. b3 {[%clk 0:03:00.9]} 15...
Bxc2 {[%clk 0:02:49]} 0-1

[Event "*** Titled Tuesday 3|2 Blitz"]
[Site "Chess.com"]
[Date "2016.09.06"]
[Round "4"]
[White "Quiet_Desperation"]
[Black "lionheart95"]
[Result "0-1"]
[WhiteElo "2225"]
[BlackElo "2437"]
[TimeControl "180+2"]
[EndTime "17:43:24 PDT"]
[Termination "lionheart95 won by resignation"]

1. e4 {[%clk 0:03:01.9]} 1... e6 {[%clk 0:03:00.3]} 2. d4 {[%clk 0:02:59.5]}
2... d5 {[%clk 0:03:01.6]} 3. Nc3 {[%clk 0:03:00.9]} 3... Nf6 {[%clk 0:03:02.9]}
4. e5 {[%clk 0:03:01.6]} 4... Nfd7 {[%clk 0:03:04]} 5. f4 {[%clk 0:03:02.9]}
5... c5 {[%clk 0:03:05.4]} 6. Nf3 {[%clk 0:03:04.3]} 6... Nc6 {[%clk 0:03:06.6]}
7. Be3 {[%clk 0:03:05.7]} 7... Be7 {[%clk 0:03:06.8]} 8. Qd2 {[%clk 0:03:05.6]}
8... O-O {[%clk 0:03:08]} 9. dxc5 {[%clk 0:03:01.8]} 9... Bxc5 {[%clk 0:03:07]}
10. O-O-O {[%clk 0:03:00.5]} 10... a6 {[%clk 0:03:07.7]} 11. h4 {[%clk
0:03:01.5]} 11... b5 {[%clk 0:03:08.8]} 12. Bxc5 {[%clk 0:03:02.5]} 12... Nxc5
{[%clk 0:03:09.5]} 13. Bd3 {[%clk 0:03:03.8]} 13... b4 {[%clk 0:03:09.3]} 14.
Ne2 {[%clk 0:03:04.1]} 14... a5 {[%clk 0:03:10.4]} 15. Kb1 {[%clk 0:03:03.7]}
15... Ba6 {[%clk 0:03:11.7]} 16. h5 {[%clk 0:02:57.3]} 16... Qd7 {[%clk
0:03:11.6]} 17. g4 {[%clk 0:02:44.9]} 17... Rfc8 {[%clk 0:03:11.4]} 18. Ng5
{[%clk 0:02:37.5]} 18... Nxd3 {[%clk 0:03:01.6]} 19. cxd3 {[%clk 0:02:35.9]}
19... a4 {[%clk 0:03:03.5]} 20. h6 {[%clk 0:02:23.5]} 20... g6 {[%clk
0:03:00.1]} 21. f5 {[%clk 0:02:15.1]} 21... Nxe5 {[%clk 0:02:58.3]} 22. Qe3
{[%clk 0:02:03]} 22... Nxg4 {[%clk 0:02:57]} 23. Qd4 {[%clk 0:02:03.9]} 23... f6
{[%clk 0:02:47.7]} 24. fxg6 {[%clk 0:01:50.8]} 24... e5 {[%clk 0:02:42.2]} 25.
gxh7+ {[%clk 0:01:35.8]} 25... Kh8 {[%clk 0:02:39.9]} 26. Qb6 {[%clk 0:01:30.2]}
26... Rc6 {[%clk 0:02:35.4]} 27. Nf7+ {[%clk 0:01:15.4]} 27... Kxh7 {[%clk
0:02:34.8]} 28. Qxb4 {[%clk 0:01:15.3]} 28... d4 {[%clk 0:02:26.3]} 29. Rhg1
{[%clk 0:01:05.5]} 29... Rg8 {[%clk 0:02:19.4]} 30. Rc1 {[%clk 0:00:27.9]} 30...
Rxc1+ {[%clk 0:02:15.5]} 31. Rxc1 {[%clk 0:00:29.1]} 31... Qxf7 {[%clk
0:02:16.6]} 32. Qxa4 {[%clk 0:00:29.8]} 32... Bxd3+ {[%clk 0:02:15.3]} 0-1

[Event "*** Titled Tuesday 3|2 Blitz"]
[Site "Chess.com"]
[Date "2016.09.06"]
[Round "4"]
[White "Abrito99"]
[Black "Gabrielian_Artur"]
[Result "0-1"]
[WhiteElo "2411"]
[BlackElo "2529"]
[TimeControl "180+2"]
[EndTime "17:43:47 PDT"]
[Termination "Gabrielian_Artur won by resignation"]

1. e4 {[%clk 0:03:01.9]} 1... c5 {[%clk 0:02:58.2]} 2. d4 {[%clk 0:03:02.5]}
2... cxd4 {[%clk 0:02:59]} 3. c3 {[%clk 0:03:04.4]} 3... dxc3 {[%clk 0:03:00.1]}
4. Nxc3 {[%clk 0:03:06.3]} 4... Nc6 {[%clk 0:03:01.4]} 5. Nf3 {[%clk 0:03:08]}
5... e6 {[%clk 0:03:02.4]} 6. Bc4 {[%clk 0:03:09.5]} 6... a6 {[%clk 0:03:03.7]}
7. O-O {[%clk 0:03:10]} 7... Qc7 {[%clk 0:03:05]} 8. Qe2 {[%clk 0:03:10.5]} 8...
b5 {[%clk 0:03:03.6]} 9. Bb3 {[%clk 0:03:11.5]} 9... Bc5 {[%clk 0:03:04.8]} 10.
Bg5 {[%clk 0:03:04.3]} 10... h6 {[%clk 0:03:04.3]} 11. Bh4 {[%clk 0:03:04.8]}
11... Nge7 {[%clk 0:03:01.1]} 12. Nd5 {[%clk 0:03:02.7]} 12... exd5 {[%clk
0:02:58.2]} 13. exd5 {[%clk 0:03:04.6]} 13... Na5 {[%clk 0:02:30.4]} 14. d6
{[%clk 0:02:41.3]} 14... Bxd6 {[%clk 0:02:26.7]} 15. Rac1 {[%clk 0:02:29.6]}
15... Nc6 {[%clk 0:02:25.5]} 16. Nd4 {[%clk 0:01:40.6]} 16... Nxd4 {[%clk
0:02:09.3]} 17. Bxf7+ {[%clk 0:01:41.7]} 17... Kxf7 {[%clk 0:02:05.7]} 18. Qh5+
{[%clk 0:01:42.4]} 18... g6 {[%clk 0:02:07.1]} 19. Qg4 {[%clk 0:01:29.4]} 19...
Ndc6 {[%clk 0:02:03.8]} 20. Qf3+ {[%clk 0:01:22]} 20... Kg8 {[%clk 0:01:56.5]}
21. Rfe1 {[%clk 0:01:20.1]} 21... Rh7 {[%clk 0:01:48.4]} 22. Qb3+ {[%clk
0:01:14.6]} 22... Kf8 {[%clk 0:01:47.8]} 23. Qf3+ {[%clk 0:01:10]} 23... Rf7
{[%clk 0:01:47.3]} 24. Qc3 {[%clk 0:01:10]} 24... Bxh2+ {[%clk 0:01:45.3]} 25.
Kh1 {[%clk 0:01:09.6]} 25... Be5 {[%clk 0:01:42.1]} 26. Qe3 {[%clk 0:01:09.6]}
26... g5 {[%clk 0:01:41.9]} 27. Bxg5 {[%clk 0:01:07.1]} 27... hxg5 {[%clk
0:01:42.4]} 28. Qxg5 {[%clk 0:01:09]} 28... Bb7 {[%clk 0:01:39.6]} 29. Re3
{[%clk 0:01:03.8]} 29... Bf4 {[%clk 0:01:32.5]} 30. Qh5 {[%clk 0:01:05]} 30...
Bxe3 {[%clk 0:01:31.5]} 31. Qh8+ {[%clk 0:01:06.3]} 31... Ng8 {[%clk 0:01:32.6]}
32. fxe3 {[%clk 0:01:08.2]} 0-1